bitfinex/quotes_SOLUSD_20220207
["timestamp","ask_amount","ask_price","bid_price","bid_amount"]
[1644208571010,54.19349257,119.37,119.3,12.5701]
[1644208571208,54.19349257,119.37,119.3,12.8201]
[1644208572212,54.19349257,119.37,119.3,12.5701]
[1644208573413,60.19349257,119.37,119.3,12.5701]
[1644208573714,60.19349257,119.37,119.3,12.8201]
[1644208574114,54.19349257,119.37,119.3,12.8201]
[1644208574617,60.19349257,119.37,119.3,12.8201]
[1644208575316,59.94349257,119.37,119.3,12.8201]
[1644208575515,59.94349257,119.37,119.31,2.09534439]
[1644208575716,59.94349257,119.37,119.31,2.34534439]
[1644208576117,53.94349257,119.37,119.31,2.34534439]
[1644208576817,54.19349257,119.37,119.31,2.34534439]
[1644208577022,54.19349257,119.37,119.31,0.25]
[1644208577219,54.19349257,119.37,119.3,12.8201]
[1644208577718,54.19349257,119.37,119.3,14.91544439]
[1644208578619,60.19349257,119.37,119.3,14.91544439]
[1644208579421,18.5716,119.37,119.3,14.91544439]
[1644208579622,48.7447,119.4,119.31,12.07]
[1644208579821,48.7447,119.4,119.33,12.5677]
[1644208580025,54.7447,119.4,119.33,24.6377]
[1644208580221,54.7447,119.4,119.34,2.09534439]
[1644208580421,47.0584498,119.39,119.34,2.09534439]
[1644208580625,53.0584498,119.39,119.34,2.34534439]
[1644208581423,53.0584498,119.39,119.33,12.07]
[1644208581723,53.0584498,119.39,119.31,12.07]
[1644208582223,53.0584498,119.39,119.29,6.28434439]
[1644208582424,53.0584498,119.39,119.29,18.35434439]
[1644208582624,65.8780498,119.39,119.3,12.5703]
[1644208583023,65.8780498,119.39,119.3,12.8203]
[1644208583825,65.8780498,119.39,119.3,12.5703]
[1644208584426,68.04162176,119.39,119.28,12.5723]
[1644208584624,27.6443,119.38,119.24,23.3352]
[1644208584828,12.5748,119.34,119.24,35.4052]
[1644208585024,12.5748,119.34,119.24,12.07]
[1644208585025,44.80215445,119.33,119.24,12.07]
[1644208585228,45.05215445,119.33,119.24,12.07]
[1644208585827,44.80215445,119.33,119.26,12.5753]
[1644208586027,12.5732,119.36,119.26,24.6453]
[1644208586226,12.8232,119.36,119.26,24.8953]
[1644208586427,6.25,119.36,119.26,32.99064439]
[1644208586626,23.4553,119.38,119.26,32.99064439]
[1644208586827,29.4553,119.38,119.27,4.19]
[1644208587027,46.4148625,119.38,119.3,12.5675]
[1644208587227,46.4148625,119.38,119.3,24.8875]
[1644208587427,46.4148625,119.38,119.3,30.8875]
[1644208587627,46.4148625,119.38,119.31,2.09534439]
[1644208587830,46.4148625,119.38,119.31,44.23294439]
[1644208588429,46.4148625,119.38,119.32,2.09534439]
[1644208588627,6.0,119.38,119.33,12.5663]
[1644208588828,6.0,119.38,119.33,24.8863]
[1644208589027,53.7068,119.44,119.34,2.09534439]
[1644208589227,53.7068,119.44,119.34,14.41534439]
[1644208589427,12.565,119.43,119.34,14.41534439]
[1644208589628,43.44791126,119.42,119.35,2.09534439]
[1644208589928,6.0,119.43,119.36,12.5645]
[1644208590332,6.0,119.43,119.36,12.8145]
[1644208590730,53.7068,119.44,119.36,12.8145]
[1644208590928,66.271,119.44,119.36,12.8145]
[1644208591128,45.27210368,119.43,119.36,12.8145]
[1644208591329,45.52210368,119.43,119.36,12.5645]
[1644208591531,51.52210368,119.43,119.36,12.5645]
[1644208591829,51.52210368,119.43,119.36,12.8145]
[1644208592029,64.08750368,119.43,119.36,0.25]
[1644208593031,51.52210368,119.43,119.35,14.90924439]
[1644208593833,51.27210368,119.43,119.35,14.90924439]
[1644208594057,47.7068,119.44,119.35,14.90924439]
[1644208594334,4.187,119.49,119.36,14.16534439]
[1644208594533,46.7217,119.49,119.39,12.5592]
[1644208594733,46.7217,119.49,119.39,12.8092]
[1644208595133,45.75092868,119.48,119.39,14.90454439]
[1644208595534,51.75092868,119.48,119.39,20.90454439]
[1644208595736,45.75092868,119.48,119.4,12.07]
[1644208595935,45.75092868,119.48,119.41,12.5575]
[1644208596336,45.75092868,119.48,119.41,12.8075]
[1644208596836,46.00092868,119.48,119.41,12.8075]
[1644208597942,45.75092868,119.48,119.41,12.8075]
[1644208598137,12.5577,119.5,119.41,14.90284439]
[1644208598437,18.5577,119.5,119.41,14.90284439]
[1644208599138,43.1299298,119.49,119.41,14.90284439]
[1644208599337,55.6887298,119.49,119.41,2.34534439]
[1644208599538,61.6887298,119.49,119.41,2.34534439]
[1644208600139,43.3799298,119.49,119.41,2.34534439]
[1644208600540,49.3799298,119.49,119.41,0.25]
[1644208600739,49.3799298,119.49,119.4,12.32]
[1644208601138,49.3799298,119.49,119.4,14.41534439]
[1644208601661,49.1299298,119.49,119.4,14.41534439]
[1644208602063,49.1299298,119.49,119.41,12.5576]
[1644208602265,49.1299298,119.49,119.41,12.8076]
[1644208604363,49.1299298,119.49,119.41,14.90294439]
[1644208604766,49.3799298,119.49,119.41,14.90294439]
[1644208610582,61.9388298,119.49,119.39,12.07]
[1644208610771,64.10240176,119.49,119.37,12.07]
[1644208610969,49.3832,119.48,119.38,6.0]
[1644208611169,55.3832,119.48,119.36,14.16534439]
[1644208611372,57.79677196,119.48,119.38,2.09534439]
[1644208611970,12.5632,119.45,119.38,2.34534439]
[1644208612176,34.80197182,119.44,119.38,2.34534439]
[1644208612372,34.80197182,119.44,119.38,2.09534439]
[1644208612572,40.80197182,119.44,119.38,2.09534439]
[1644208613873,40.80197182,119.44,119.38,2.34534439]
[1644208614073,53.36627182,119.44,119.38,2.34534439]
[1644208617380,53.36627182,119.44,119.35,14.65944439]
[1644208617579,53.61627182,119.44,119.35,2.34534439]
[1644208617780,53.61627182,119.44,119.31,25.14550333]
[1644208617781,67.84984378,119.44,119.31,25.14550333]
[1644208618080,46.7138,119.43,119.31,18.07]
[1644208618283,55.27253118,119.4,119.31,12.07]
[1644208618483,42.70383118,119.4,119.31,12.07]
[1644208618681,42.95383118,119.4,119.32,12.5684]
[1644208619082,42.95383118,119.4,119.32,12.8184]
[1644208621086,48.95383118,119.4,119.32,12.8184]
[1644208622083,18.5682,119.4,119.32,12.8184]
[1644208622282,12.5682,119.4,119.32,18.8184]
[1644208622486,12.5682,119.4,119.32,12.8184]
[1644208623087,48.60139257,119.39,119.32,12.5684]
[1644208624190,54.60139257,119.39,119.32,12.5684]
[1644208624390,54.60139257,119.39,119.32,14.91374439]
[1644208624590,48.60139257,119.39,119.32,14.91374439]
[1644208625991,36.8226,119.4,119.32,14.91374439]
[1644208626193,43.0726,119.4,119.32,14.66374439]
[1644208626690,37.0726,119.4,119.32,14.66374439]
[1644208627191,40.71292656,119.39,119.32,14.66374439]
[1644208627490,24.5044,119.4,119.32,14.66374439]
[1644208627691,24.5044,119.4,119.32,14.91374439]
[1644208628413,36.67082993,119.39,119.32,14.91374439]
[1644208629214,24.2544,119.4,119.32,14.91374439]
[1644208629413,41.888,119.45,119.32,14.91374439]
[1644208629414,16.259,119.46,119.32,47.27805568]
[1644208629614,33.6364,119.46,119.32,69.98305568]
[1644208630014,33.1364,119.46,119.32,69.98305568]
[1644208630216,47.02022391,119.45,119.32,69.98305568]
[1644208630417,47.02022391,119.45,119.32,74.17105568]
[1644208630615,53.02022391,119.45,119.32,74.17105568]
[1644208631017,53.27022391,119.45,119.32,74.17105568]
[1644208631218,53.02022391,119.45,119.32,74.17105568]
[1644208632018,36.486,119.44,119.32,73.92105568]
[1644208632218,42.486,119.44,119.32,73.92105568]
[1644208632620,42.736,119.44,119.32,73.92105568]
[1644208632819,42.486,119.44,119.32,73.92105568]
[1644208633020,29.0771,119.47,119.32,73.92105568]
[1644208633222,77.4533,119.49,119.32,73.92105568]
[1644208633223,23.5099,119.49,119.33,150.88]
[1644208633427,23.5099,119.49,119.37,12.5571]
[1644208633626,23.5099,119.49,119.37,22.7431]
[1644208633824,23.5099,119.49,119.37,31.40426944]
[1644208634027,35.60221411,119.48,119.38,18.41210784]
[1644208634226,35.60221411,119.48,119.39,16.256]
[1644208634427,35.60221411,119.48,119.39,12.07]
[1644208634625,41.60221411,119.48,119.39,12.32]
[1644208634825,41.60221411,119.48,119.39,0.25]
[1644208635028,22.8498,119.47,119.39,0.25]
[1644208635327,23.0998,119.47,119.39,0.25]
[1644208635527,29.0998,119.47,119.39,0.25]
[1644208635726,12.5622,119.46,119.39,12.5615]
[1644208636127,18.8122,119.46,119.39,12.8115]
[1644208636326,18.8122,119.46,119.35,94.34189597]
[1644208636529,18.8122,119.46,119.35,16.32749919]
[1644208636726,20.97577196,119.46,119.35,16.32749919]
[1644208637526,18.8122,119.46,119.35,16.32749919]
[1644208637727,18.8122,119.46,119.35,17.75829597]
[1644208637933,18.8122,119.46,119.35,30.32319597]
[1644208638327,18.8122,119.46,119.35,32.40780462]
[1644208639529,18.8122,119.46,119.35,38.40780462]
[1644208640830,18.8122,119.46,119.35,22.08030543]
[1644208641229,18.8122,119.46,119.36,1.18079678]
[1644208641430,18.8122,119.46,119.37,12.563]
[1644208641731,18.8122,119.46,119.37,12.813]
[1644208642131,12.5622,119.46,119.37,20.89760865]
[1644208642330,22.8498,119.47,119.37,22.07840543]
[1644208642529,22.8498,119.47,119.38,1.18079678]
[1644208642730,22.8498,119.47,119.38,1.43079678]
[1644208642931,22.8498,119.47,119.4,12.5596]
[1644208643329,22.8498,119.47,119.4,14.89420865]
[1644208643529,22.8498,119.47,119.4,0.00420865]
[1644208643731,29.0998,119.47,119.38,1.18079678]
[1644208643930,18.41957196,119.46,119.35,1.18079678]
[1644208644134,25.61064207,119.46,119.34,4.187]
[1644208644335,25.86064207,119.46,119.34,4.187]
[1644208644632,12.5667,119.44,119.34,4.187]
[1644208644832,45.81435025,119.43,119.33,12.5671]
[1644208645032,24.3669,119.42,119.33,12.5671]
[1644208645232,24.6169,119.42,119.33,12.8171]
[1644208645432,30.6169,119.42,119.33,12.8171]
[1644208646032,12.5674,119.41,119.33,12.8171]
[1644208646232,18.8174,119.41,119.33,12.8171]
[1644208647237,18.8174,119.41,119.33,12.3171]
[1644208648445,18.8174,119.41,119.33,0.25]
[1644208648638,18.8174,119.41,119.31,12.5683]
[1644208648838,18.8174,119.41,119.3,1.18079678]
[1644208649039,18.8174,119.41,119.29,1.18079678]
[1644208649040,37.81102907,119.39,119.29,1.18079678]
[1644208649239,36.8285,119.38,119.29,1.18079678]
[1644208649640,43.0785,119.38,119.29,1.18079678]
[1644208650140,43.0785,119.38,119.29,14.00119678]
[1644208650341,43.0785,119.38,119.29,12.8204]
[1644208650741,43.0785,119.38,119.29,12.5704]
[1644208652144,43.0785,119.38,119.29,12.8204]
[1644208653144,42.8285,119.38,119.29,12.8204]
[1644208653347,36.8285,119.38,119.29,18.8204]
[1644208653742,42.8285,119.38,119.29,18.8204]
[1644208653943,42.8285,119.38,119.29,12.8204]
[1644208654545,43.0785,119.38,119.29,12.8204]
[1644208654946,43.0785,119.38,119.29,0.25]
[1644208655346,43.0785,119.38,119.27,33.12333569]
[1644208655747,43.0785,119.38,119.27,20.00339678]
[1644208655946,43.0785,119.38,119.27,27.57799791]
[1644208656146,43.0785,119.38,119.27,28.75879469]
[1644208656346,43.0785,119.38,119.27,20.00339678]
[1644208656545,43.0785,119.38,119.27,18.5726]
[1644208656748,45.24207196,119.38,119.27,18.5726]
[1644208656947,45.24207196,119.38,119.25,17.94449678]
[1644208657152,16.26,119.37,119.24,1.18079678]
[1644208657351,12.5775,119.34,119.23,26.15979678]
[1644208657547,46.1187597,119.32,119.23,26.15979678]
[1644208657749,46.3687597,119.32,119.23,26.15979678]
[1644208657947,52.3687597,119.32,119.24,2.07922128]
[1644208658150,66.60233166,119.32,119.23,1.18079678]
[1644208658350,66.60233166,119.32,119.21,1.18079678]
[1644208658954,79.17983166,119.32,119.21,13.75979678]
[1644208659153,79.17983166,119.32,119.21,15.83901806]
[1644208659353,79.17983166,119.32,119.21,14.90822128]
[1644208659553,77.0162597,119.32,119.21,14.65822128]
[1644208662270,77.0162597,119.32,119.21,14.90822128]
[1644208663571,71.0162597,119.32,119.21,14.90822128]
[1644208665172,77.0162597,119.32,119.21,20.90822128]
[1644208665371,77.0162597,119.32,119.21,14.90822128]
[1644208665970,64.9462597,119.32,119.21,20.90822128]
[1644208666772,64.9462597,119.32,119.21,32.97822128]
[1644208666972,52.1187597,119.32,119.21,32.97822128]
[1644208667172,52.1187597,119.32,119.21,34.15901806]
[1644208667375,46.1187597,119.32,119.22,1.18079678]
[1644208667676,22.6897,119.33,119.25,12.5732]
[1644208668075,22.6897,119.33,119.26,2.07922128]
[1644208668275,22.6897,119.33,119.26,2.32922128]
[1644208668677,69.30624439,119.34,119.26,2.32922128]
[1644208668876,69.30624439,119.34,119.27,2.07922128]
[1644208669075,75.30624439,119.34,119.27,2.07922128]
[1644208669276,75.30624439,119.34,119.27,2.32922128]
[1644208669678,75.30624439,119.34,119.28,2.07922128]
[1644208670180,69.30624439,119.34,119.28,14.90162128]
[1644208672079,75.30624439,119.34,119.28,14.90162128]
[1644208672279,69.30624439,119.34,119.28,14.90162128]
[1644208673380,23.3869,119.34,119.28,14.90162128]
[1644208673581,23.0524,119.36,119.29,2.07922128]
[1644208673781,23.0524,119.36,119.31,12.5696]
[1644208673980,6.0,119.36,119.31,12.5696]
[1644208674181,12.5712,119.38,119.31,14.89882128]
[1644208674381,64.80493785,119.38,119.31,14.89882128]
[1644208676580,64.80493785,119.38,119.31,12.8196]
[1644208676984,64.80493785,119.38,119.31,14.89882128]
[1644208677181,64.80493785,119.38,119.31,12.8196]
[1644208677889,64.80493785,119.38,119.31,0.25]
[1644208677890,65.05493785,119.38,119.31,0.25]
[1644208678281,69.24393785,119.38,119.29,12.5713]
[1644208678482,69.24393785,119.38,119.27,18.33822128]
[1644208678781,24.8617,119.37,119.27,6.26822128]
[1644208678984,12.5734,119.36,119.27,14.65242128]
[1644208679190,18.5734,119.36,119.27,12.5732]
[1644208679383,18.8234,119.36,119.27,12.5732]
[1644208679785,18.8234,119.36,119.27,12.8232]
[1644208681288,18.8234,119.36,119.27,12.5732]
[1644208683087,18.8234,119.36,119.27,12.8232]
[1644208686095,18.5734,119.36,119.27,12.8232]
[1644208687295,18.8234,119.36,119.27,12.8232]
[1644208688292,18.8234,119.36,119.27,0.25]
[1644208688493,18.8234,119.36,119.26,3.51001806]
[1644208689294,18.5734,119.36,119.26,3.51001806]
[1644208689495,18.5734,119.36,119.27,1.18079678]
[1644208689694,18.5734,119.36,119.27,1.43079678]
[1644208689895,18.5734,119.36,119.27,3.51001806]
[1644208690096,18.5734,119.36,119.28,12.5729]
[1644208690296,18.5734,119.36,119.28,12.8229]
[1644208690695,12.5734,119.36,119.28,12.8229]
[1644208691102,12.5734,119.36,119.28,14.90212128]
[1644208691797,12.5734,119.36,119.28,16.08291806]
[1644208691997,12.8234,119.36,119.28,14.90212128]
[1644208692598,0.25,119.36,119.28,16.08291806]
[1644208692903,0.25,119.36,119.28,14.90212128]
[1644208693105,54.7786,119.37,119.28,14.90212128]
[1644208693504,54.7786,119.37,119.28,16.08291806]
[1644208693904,12.5725,119.36,119.28,16.08291806]
[1644208694104,54.7786,119.37,119.28,16.08291806]
[1644208694505,48.7786,119.37,119.28,16.08291806]
[1644208694704,48.7786,119.37,119.28,22.08291806]
[1644208694905,48.5286,119.37,119.28,22.08291806]
[1644208695328,48.5286,119.37,119.29,1.18079678]
[1644208695535,48.5286,119.37,119.31,12.5686]
[1644208695731,48.5286,119.37,119.31,12.8186]
[1644208695930,48.5286,119.37,119.31,18.8186]
[1644208698731,48.5286,119.37,119.31,12.8186]
[1644208699339,48.7786,119.37,119.31,12.8186]
[1644208699833,48.5286,119.37,119.31,12.8186]
[1644208700235,23.9284,119.41,119.31,23.95282128]
[1644208700434,23.7124,119.4,119.31,42.02282128]
[1644208700735,23.7124,119.4,119.31,43.20361806]
[1644208701132,63.224668,119.4,119.31,43.20361806]
[1644208701737,39.512268,119.4,119.31,43.20361806]
[1644208702737,39.762268,119.4,119.31,43.20361806]
[1644208707645,39.762268,119.4,119.31,42.95361806]
[1644208707848,52.331468,119.4,119.31,27.6236]
[1644208708048,58.331468,119.4,119.31,18.5686]
[1644208708249,58.331468,119.4,119.29,1.18079678]
[1644208708449,23.4763,119.39,119.28,1.18079678]
[1644208708656,4.189,119.38,119.27,23.83809678]
[1644208708955,44.58212715,119.36,119.27,22.6573]
[1644208709155,50.58212715,119.36,119.27,22.6573]
[1644208709354,50.83212715,119.36,119.26,7.44901806]
[1644208709552,52.99569911,119.36,119.26,3.26001806]
[1644208709755,36.9416,119.35,119.27,12.5735]
[1644208710155,43.1916,119.35,119.27,12.8235]
[1644208710354,43.1916,119.35,119.27,0.25]
[1644208711256,43.1916,119.35,119.25,10.18364343]
[1644208711467,47.3826,119.35,119.25,9.00284665]
[1644208712059,47.3826,119.35,119.25,21.57834665]
[1644208712660,43.1916,119.35,119.25,21.57834665]
[1644208713058,43.1916,119.35,119.25,23.65746297]
[1644208713258,43.1916,119.35,119.25,24.83825975]
[1644208715084,42.9416,119.35,119.25,24.83825975]
[1644208715583,42.9416,119.35,119.25,16.0854131]
[1644208715984,42.9416,119.35,119.25,15.8354131]
[1644208716183,42.9416,119.35,119.25,14.65461632]
[1644208716582,43.1916,119.35,119.25,14.65461632]
[1644208717684,43.1916,119.35,119.25,14.90461632]
[1644208720589,42.9416,119.35,119.25,14.90461632]
[1644208720991,42.9416,119.35,119.25,16.0854131]
[1644208721390,42.9416,119.35,119.25,14.90461632]
[1644208721590,42.9416,119.35,119.25,16.0854131]
[1644208721991,36.9416,119.35,119.25,16.0854131]
[1644208722189,12.573,119.37,119.27,1.18079678]
[1644208722389,22.9913,119.38,119.29,12.5711]
[1644208722591,22.9913,119.38,119.29,34.8301]
[1644208722790,22.9913,119.38,119.3,2.07911632]
[1644208723189,22.9913,119.38,119.3,50.22141632]
[1644208723590,22.9913,119.38,119.31,2.07911632]
[1644208723796,22.9913,119.38,119.31,2.32911632]
[1644208723992,22.9913,119.38,119.32,12.5677]
[1644208724192,22.9913,119.38,119.32,12.8177]
[1644208724596,22.9913,119.38,119.32,12.5677]
[1644208725995,22.9913,119.38,119.32,12.8177]
[1644208726594,20.4913,119.38,119.32,12.8177]
[1644208729302,19.9913,119.38,119.32,12.8177]
[1644208730804,20.2413,119.38,119.32,12.8177]
[1644208731305,34.32254609,119.36,119.23,11.02792724]
[1644208731504,12.07,119.35,119.2,4.189]
[1644208731705,4.191,119.34,119.2,12.5785]
[1644208731905,53.4888,119.35,119.21,12.07]
[1644208732106,47.4888,119.35,119.26,0.81128819]
[1644208733007,47.4888,119.35,119.27,12.5718]
[1644208733307,47.4888,119.35,119.28,14.59938683]
[1644208733507,12.569,119.4,119.28,14.59938683]
[1644208733708,23.2518,119.39,119.28,20.84938683]
[1644208733907,23.2518,119.39,119.28,32.91938683]
[1644208734107,23.5018,119.39,119.28,32.91938683]
[1644208734507,59.16806639,119.39,119.28,32.91938683]
[1644208735009,59.16806639,119.39,119.3,2.86375335]
[1644208735209,59.16806639,119.39,119.3,3.11375335]
[1644208735811,59.41806639,119.39,119.3,3.11375335]
[1644208736209,71.98746639,119.39,119.3,15.43205335]
[1644208736510,76.17646639,119.39,119.3,12.5683]
[1644208736810,82.17646639,119.39,119.28,22.9416]
[1644208737111,77.98746639,119.39,119.28,22.9416]
[1644208737917,77.98746639,119.39,119.29,0.40998082]
[1644208738113,77.98746639,119.39,119.28,35.5117]
[1644208739515,77.98746639,119.39,119.28,35.7617]
[1644208739915,77.98746639,119.39,119.28,35.5117]
[1644208741136,77.98746639,119.39,119.28,35.7617]
[1644208741837,77.98746639,119.39,119.29,2.17734883]
[1644208742037,22.6191,119.4,119.32,12.5667]
[1644208742237,22.6191,119.4,119.32,24.8867]
[1644208742437,22.6191,119.4,119.32,30.8867]
[1644208742847,23.8871,119.42,119.32,30.8867]
[1644208743038,35.81386267,119.41,119.32,46.17249135]
[1644208743740,23.8871,119.42,119.32,46.17249135]
[1644208744738,69.72192929,119.42,119.32,46.17249135]
[1644208746541,96.8671,119.46,119.32,46.17249135]
[1644208746542,23.759,119.46,119.36,12.5613]
[1644208746745,23.759,119.46,119.37,12.07]
[1644208746943,27.4713,119.51,119.37,14.13846549]
[1644208747143,47.8636,119.51,119.38,23.4741]
[1644208747344,47.8636,119.51,119.39,12.07]
[1644208747546,40.17455546,119.5,119.4,15.28579135]
[1644208747748,47.8636,119.51,119.4,15.28579135]
[1644208747749,47.8636,119.51,119.41,12.5568]
[1644208747945,21.95203952,119.54,119.41,12.5568]
[1644208747946,23.76809108,119.54,119.41,24.6268]
[1644208748145,48.6249,119.54,119.41,37.12926549]
[1644208748345,48.6249,119.54,119.42,2.06846549]
[1644208748545,425.09522632,119.57,119.43,12.07]
[1644208748748,38.75664796,119.56,119.47,12.5497]
[1644208749146,44.75664796,119.56,119.47,12.7997]
[1644208749347,44.75664796,119.56,119.47,14.86816549]
[1644208749947,38.75664796,119.56,119.47,14.86816549]
[1644208750146,38.75664796,119.56,119.47,32.93816549]
[1644208750349,38.75664796,119.56,119.48,2.17734883]
[1644208750551,38.75664796,119.56,119.5,12.5479]
[1644208750747,38.75664796,119.56,119.5,12.7979]
[1644208753049,38.75664796,119.56,119.5,18.7979]
[1644208753249,38.75664796,119.56,119.5,12.7979]
[1644208753852,39.00664796,119.56,119.5,12.7979]
[1644208754451,38.75664796,119.56,119.5,12.7979]
[1644208755150,44.75664796,119.56,119.5,12.7979]
[1644208755353,38.75664796,119.56,119.5,12.7979]
[1644208755750,45.00664796,119.56,119.5,12.7979]
[1644208755951,39.00664796,119.56,119.5,12.5479]
[1644208756151,39.00664796,119.56,119.5,6.0]
[1644208756351,51.55814796,119.56,119.48,12.5506]
[1644208756552,57.55814796,119.56,119.48,12.5506]
[1644208757356,57.55814796,119.56,119.48,12.8006]
[1644208757754,57.55814796,119.56,119.48,0.25]
[1644208758255,57.55814796,119.56,119.46,30.8728]
[1644208758457,57.55814796,119.56,119.46,24.8728]
[1644208760157,57.55814796,119.56,119.46,0.25]
[1644208760358,57.55814796,119.56,119.44,12.8048]
[1644208760563,61.74214796,119.56,119.44,18.8048]
[1644208761560,57.55814796,119.56,119.44,18.8048]
[1644208763260,12.07,119.55,119.44,18.5548]
[1644208763459,12.5571,119.52,119.44,6.0]
[1644208763661,18.5571,119.52,119.42,18.5571]
[1644208763860,18.8071,119.52,119.42,18.5571]
[1644208764261,41.24386892,119.51,119.42,12.5571]
[1644208764659,41.24386892,119.51,119.42,19.51799344]
[1644208764859,41.24386892,119.51,119.42,31.83799344]
[1644208765861,41.24386892,119.51,119.45,12.5532]
[1644208766262,41.24386892,119.51,119.45,12.8032]
[1644208767967,46.6781,119.54,119.45,12.8032]
[1644208768166,52.6781,119.54,119.45,12.8032]
[1644208768563,46.6781,119.54,119.45,12.8032]
[1644208768764,46.9281,119.54,119.45,12.8032]
[1644208768965,46.6781,119.54,119.45,12.8032]
[1644208769765,45.17960408,119.53,119.45,26.70425362]
[1644208769965,45.17960408,119.53,119.45,34.7622967]
[1644208770668,12.5521,119.56,119.45,34.7622967]
[1644208770867,22.6803,119.57,119.45,34.7622967]
[1644208771066,0.25,119.56,119.45,38.9452967]
[1644208771266,22.6803,119.57,119.46,12.07]
[1644208771565,22.6803,119.57,119.5,12.5471]
[1644208771566,43.19141866,119.57,119.5,12.5471]
[1644208771765,43.19141866,119.57,119.5,12.7971]
[1644208771967,43.19141866,119.57,119.5,18.7971]
[1644208772568,43.44141866,119.57,119.5,20.85514308]
[1644208773570,43.19141866,119.57,119.5,12.5471]
[1644208773773,43.44141866,119.57,119.48,12.551]
[1644208773972,49.44141866,119.57,119.44,12.07]
[1644208774170,53.62441866,119.57,119.44,18.07]
[1644208774971,66.17521866,119.57,119.46,12.5531]
[1644208775270,74.06221866,119.57,119.46,18.8031]
[1644208775471,78.24521866,119.57,119.46,18.8031]
[1644208775774,78.24521866,119.57,119.46,12.8031]
[1644208776372,74.06221866,119.57,119.46,12.8031]
[1644208776672,74.06221866,119.57,119.46,17.01839307]
[1644208777071,73.81221866,119.57,119.46,23.01839307]
[1644208777472,73.81221866,119.57,119.46,18.8031]
[1644208777890,76.1801671,119.57,119.46,18.8031]
[1644208778379,76.4301671,119.57,119.46,18.5531]
[1644208779179,76.4301671,119.57,119.46,22.31095597]
[1644208779379,74.06221866,119.57,119.46,22.31095597]
[1644208779879,74.06221866,119.57,119.46,18.8031]
[1644208780482,74.06221866,119.57,119.46,20.86114308]
[1644208781279,74.06221866,119.57,119.46,20.61114308]
[1644208781481,76.4301671,119.57,119.46,18.5531]
[1644208781700,2.38789412,119.56,119.46,12.5531]
[1644208781903,12.5546,119.53,119.46,12.5531]
[1644208782202,12.8046,119.53,119.45,12.5549]
[1644208782400,43.85601866,119.52,119.43,6.0]
[1644208782599,43.85601866,119.52,119.42,22.5341]
[1644208782600,49.85601866,119.52,119.42,6.0]
[1644208782799,50.10601866,119.52,119.42,6.0]
[1644208783000,50.10601866,119.52,119.4,30.6057]
[1644208783200,23.5244,119.51,119.4,30.6057]
[1644208783603,12.5592,119.49,119.41,12.5583]
[1644208783802,48.80147507,119.48,119.41,12.8083]
[1644208784001,48.80147507,119.48,119.41,18.5583]
[1644208784201,49.05147507,119.48,119.41,18.5583]
[1644208784401,48.80147507,119.48,119.41,18.5583]
[1644208784603,49.05147507,119.48,119.41,12.5583]
[1644208785003,61.61167507,119.48,119.39,37.36514308]
[1644208785203,61.61167507,119.48,119.39,18.5606]
[1644208786207,61.61167507,119.48,119.39,18.8106]
[1644208786404,61.61167507,119.48,119.39,20.61864308]
[1644208787808,61.61167507,119.48,119.39,20.86864308]
[1644208788307,49.05147507,119.48,119.39,20.86864308]
[1644208788606,48.80147507,119.48,119.39,20.86864308]
[1644208788809,48.80147507,119.48,119.4,15.1388568]
[1644208789008,23.3406,119.49,119.42,12.5558]
[1644208789207,23.9188,119.5,119.42,18.8058]
[1644208789608,23.9188,119.5,119.43,2.05804308]
[1644208789807,23.9188,119.5,119.43,2.30804308]
[1644208790007,23.9188,119.5,119.43,8.30804308]
[1644208790208,24.1688,119.5,119.43,8.30804308]
[1644208790408,23.9188,119.5,119.43,8.30804308]
[1644208790606,24.2631,119.53,119.44,14.61434308]
[1644208790808,24.2631,119.53,119.44,14.86434308]
[1644208791007,35.389406,119.52,119.45,2.05804308]
[1644208791207,35.389406,119.52,119.45,2.30804308]
[1644208791607,35.389406,119.52,119.45,14.86244308]
[1644208791807,35.639406,119.52,119.45,0.25]
[1644208792608,35.639406,119.52,119.42,18.32]
[1644208793009,48.195306,119.52,119.44,12.5563]
[1644208793213,48.195306,119.52,119.44,18.8063]
[1644208794714,48.195306,119.52,119.44,14.86434308]